Workbook

Sheet Poids
A1: JOUR | C1: POIDS | D1: par jour | E1: depuis le début | F1: =MIN(C2:C34) -> 79.6 | G1: =MAX(C2:C34) -> 90
A2: 2014-01-08 | C2: 90
A3: 2016-03-08 | C3: 82 | D3: =IF(C3<>"",(1-(C3/C2))*(-1),"") -> -0.08888888889 | E3: =IF(C3<>"",(1-($C3/$C$3))*(-1),"") -> 0
A4: =A3+1 -> 2016-03-09 | B4: =IF(C4<C2,$I$5,IF(C4>C2,$H$5,IF(C4=C2,$J$5,IF($D4="","")))) -> ê | C4: 81.2 | D4: =IF(C4<>"",(1-(C4/C3))*(-1),"") -> -0.009756097561 | E4: =IF(C4<>"",(1-($C4/$C$3))*(-1),"") -> -0.009756097561 | H4: K | I4: L
A5: =A4+1 -> 2016-03-10 | B5: =IF(C5<C4,$I$5,IF(C5>C4,$H$5,IF(C5=C4,$J$5,IF($D5="","")))) -> ê | C5: 80.6 | D5: =IF(C5<>"",(1-(C5/C4))*(-1),"") -> -0.007389162562 | E5: -0.01707317073 | H5: é | I5: ê | J5: è
A6: 2016-03-11 | B6: ê | C6: 80 | D6: =IF(C6<>"",(1-(C6/C5))*(-1),"") -> -0.007444168734 | E6: =IF(C6<>"",(1-($C6/$C$3))*(-1),"") -> -0.0243902439
A7: 2016-03-12 | B7: ê | C7: 79.6 | D7: =IF(C7<>"",(1-(C7/C6))*(-1),"") -> -0.005 | E7: -0.02926829268
A8: 2016-03-13 | B8: ê
A9: 2016-03-14 | B9: è
A10: 2016-03-15 | B10: è
A11: 2016-03-16 | B11: è
A12: 2016-03-17 | B12: è
A13: 2016-03-18 | B13: è
A14: 2016-03-19 | B14: è
A15: 2016-03-20 | B15: è
A16: 2016-03-21 | B16: è
A17: 2016-03-22 | B17: è
A18: 2016-03-23 | B18: è
A19: 2016-03-24 | B19: è
D20: =IF(C20<>"",(1-(C20/C19))*(-1),"") -> 
H32: PERTE REELLE TOTALE
H33: =FIXED($C$3-(LOOKUP(9^9,$C$3:$C$34)))&" kg soit "&(FIXED(($C$3-(LOOKUP(9^9,$C$3:$C$34)))/$C$3*100)&" % pour "&DATEDIF($A$3,TODAY(),"d"))&" jours soit "&FIXED((FIXED($C$3-(LOOKUP(9^9,$C$3:$C$34))))/DATEDIF($A$3,TODAY(),"d"),3)&" kg par jour" -> 2,40 kg soit 2,93 % pour 4 jours soit 0,600 kg par jour
J34: EXTRAPOLATION AU | O34: POIDS | Q34: PERDU EN COURS | U34: PERDU EXTRAPOLEE
A35: JOUR | B35: Perte Cumulée | C35: Perte/Jour | D35: Moyenne | J35: JOUR | L35: Moyenne
A36: =A4 -> 2016-03-09 | B36: =C3-C4 -> 0.8 | C36: =IF(D4="","",(C4-C3)*-1) -> 0.8 | D36: =IF(C36<>"",AVERAGE($C$36:$C$49),"") -> 0.6 | J36: 2016-03-16 | L36: =IF(J36<TODAY(),"",(FIXED((C3-(LOOKUP(9^9,C3:C34)))/DATEDIF(A3,J36,"d"))&" kg par jour")) -> 0,30 kg par jour | O36: =$C$3-(DATEDIF($A$3,$J$36,"d"))*AVERAGE($C$36:$C$49)&" kg" -> 77,2 kg | Q36: =FIXED($C$3-(LOOKUP(9^9,$C$3:$C$34)))&" kg" -> 2,40 kg | U36: =C3-($C$3-(DATEDIF($A$3,$J$36,"d"))*AVERAGE($C$36:C49)) -> 4.8
A37: =A5 -> 2016-03-10 | B37: =(C4-C5)+B36 -> 1.4 | C37: =IF(D5="","",(C5-C4)*-1) -> 0.6 | D37: =IF(C37<>"",AVERAGE($C$36:$C$49),"") -> 0.6
A38: =A6 -> 2016-03-11 | B38: =(C5-C6)+B37 -> 2 | C38: =IF(D6="","",(C6-C5)*-1) -> 0.6 | D38: =IF(C38<>"",AVERAGE($C$36:$C$49),"") -> 0.6
A39: =A7 -> 2016-03-12 | B39: =(C6-C7)+B38 -> 2.4 | C39: =IF(D7="","",(C7-C6)*-1) -> 0.4 | D39: =IF(C39<>"",AVERAGE($C$36:$C$49),"") -> 0.6
A40: =A8 -> 2016-03-13
A41: =A9 -> 2016-03-14
A42: =A10 -> 2016-03-15 | E42: =IF(#REF!<>"",(1-(#REF!/$C$2))*(-1),"") -> 
A43: =A11 -> 2016-03-16
A44: =A12 -> 2016-03-17
A45: =A13 -> 2016-03-18
A46: =A14 -> 2016-03-19
A47: =A15 -> 2016-03-20
A48: =A16 -> 2016-03-21
A49: =A17 -> 2016-03-22

Sheet Feuil1
